fUST/lending_fUST_20240220
["ID","MTS","AMOUNT","RATE_DAILY","PERIOD"]
[314514703,1708391443956,-783.937787,0.00021917,2]
[314514704,1708391443965,-500.0,0.00021917,2]
[314514705,1708391443974,-783.937787,0.00021917,2]
[314514706,1708391443983,-3575.96,0.00021917,2]
[314514707,1708391443993,-783.937787,0.00021917,2]
[314514708,1708391444002,-3575.96,0.00021917,2]
[314514709,1708391444011,-920.81,0.00021917,2]
[314514710,1708391444020,-783.937787,0.00021917,2]
[314514711,1708391444030,-783.937787,0.00021917,2]
[314514712,1708391444039,-783.937787,0.00021917,2]
[314514713,1708391444048,-783.937787,0.00021917,2]
[314514714,1708391444057,-783.937787,0.00021917,2]
[314514715,1708391444066,-783.937787,0.00021917,2]
[314514716,1708391444075,-783.937787,0.00021917,2]
[314514717,1708391444084,-783.937787,0.00021917,2]
[314514718,1708391444093,-253.9869459,0.00021917,2]
[314514719,1708391444102,-783.937787,0.00021917,2]
[314514720,1708391444112,-783.937787,0.00021917,2]
[314514721,1708391444121,-783.937787,0.00021917,2]
[314514722,1708391444130,-783.937787,0.00021917,2]
[314514723,1708391444139,-521.16769814,0.00021917,2]
[314514724,1708391444148,-783.93778405,0.00021917,2]
[314514725,1708391444157,-1879.9,0.00021917,2]
[314514726,1708391444166,-500.0,0.00021917,2]
[314514727,1708391444175,-500.0,0.00021917,2]
[314514728,1708391444184,-500.0,0.00021917,2]
[314514729,1708391444193,-500.0,0.00021917,2]
[314514730,1708391444202,-579.08,0.00021917,2]
[314514731,1708391444211,-249.20328924,0.00021917,2]
[314514732,1708391444219,-500.0,0.00021917,2]
[314514733,1708391444228,-500.0,0.00021917,2]
[314514734,1708391444238,-235.56987339,0.00021917,2]
[314514735,1708391444246,-500.0,0.00021917,2]
[314514736,1708391444256,-1090.251156,0.00021917,2]
[314514737,1708391444265,-1090.251156,0.00021917,2]
[314514738,1708391444274,-500.24723348,0.00021917,2]
[314514739,1708391444285,-1090.251156,0.00021917,2]
[314514740,1708391444294,-1090.251156,0.00021917,2]
[314514741,1708391444303,-1090.251156,0.00021917,2]
[314514742,1708391444312,-1090.251156,0.00021917,2]
[314514743,1708391444321,-1090.251156,0.00021917,2]
[314514744,1708391444330,-1090.251156,0.00021917,2]
[314514745,1708391444340,-1090.251156,0.00021917,2]
[314514746,1708391444349,-1090.251156,0.00021917,2]
[314514747,1708391444358,-612.36,0.00021917,2]
[314514748,1708391444367,-1090.251156,0.00021917,2]
[314514749,1708391444376,-591.81,0.00021917,2]
[314514750,1708391444386,-1090.251156,0.00021917,2]
[314514751,1708391444395,-1090.251156,0.00021917,2]
[314514752,1708391444404,-1090.251156,0.00021917,2]
[314514753,1708391444413,-1090.251156,0.00021917,2]
[314514754,1708391444422,-500.0,0.00021917,2]
[314514755,1708391444430,-1090.251156,0.00021917,2]
[314514756,1708391444439,-1090.251156,0.00021917,2]
[314514757,1708391444448,-1090.251157,0.00021917,2]
[314514758,1708391444457,-500.0,0.00021917,2]
[314514759,1708391444466,-500.0,0.00021917,2]
[314514760,1708391444475,-509.4744152,0.00021917,2]
[314514761,1708391444484,-500.0,0.00021917,2]
[314514762,1708391444493,-500.0,0.00021917,2]
[314514763,1708391444502,-500.0,0.00021917,2]
[314514764,1708391444511,-500.0,0.00021917,2]
[314514765,1708391444520,-803.13,0.00021917,2]
[314514766,1708391444531,-500.0,0.00021917,2]
[314514767,1708391444543,-500.0,0.00021917,2]
[314514768,1708391444552,-646.7128924,0.00021917,2]
[314514769,1708391444561,-516.54143644,0.00021917,2]
[314514770,1708391444570,-1232.01,0.00021917,2]
[314514771,1708391444579,-618.60061479,0.00021917,2]
[314514772,1708391444588,-4800.05,0.00021917,2]
[314514773,1708391444597,-500.0,0.00021917,2]
[314514774,1708391444606,-7449.73,0.00021917,2]
[314514775,1708391444616,-1320.52,0.00021917,2]
[314514776,1708391444625,-652.04,0.00021917,2]
[314514777,1708391444635,-393.73352304,0.00021917,2]
[314514778,1708391444645,-500.0,0.00021917,2]
[314514779,1708391444654,-500.0,0.00021917,2]
[314514780,1708391444663,-750.22,0.00021917,2]
[314514781,1708391444672,-169.78562533,0.00021917,2]
[314514782,1708391444681,-500.0,0.00021917,2]
[314514783,1708391444690,-500.0,0.00021917,2]
[314514784,1708391444699,-500.0,0.00021917,2]
[314514785,1708391444708,-512.81045093,0.00021917,2]
[314514786,1708391444717,-500.0,0.00021917,2]
[314514787,1708391444727,-6646.62,0.00021917,2]
[314514788,1708391444736,-500.0,0.00021917,2]
[314514789,1708391444745,-3291.38,0.00021917,2]
[314514790,1708391444754,-500.0,0.00021917,2]
[314514791,1708391444763,-500.0,0.00021917,2]
[314514792,1708391444772,-379.73370457,0.00021917,2]
[314514793,1708391444782,-2200.02,0.00021917,2]
[314514794,1708391444791,-199.42460933,0.00021917,2]
[314514795,1708391444800,-500.0,0.00021917,2]
[314514796,1708391444809,-500.0,0.00021917,2]
[314514797,1708391444818,-5811.3895324,0.00021918,2]
[314514798,1708391444826,-500.0,0.00021966,2]
[314514799,1708391444835,-500.0,0.00021966,2]
[314514800,1708391444844,-500.0,0.00021966,2]
[314514801,1708391444853,-500.0,0.00021966,2]
[314514802,1708391444862,-500.0,0.00021966,2]
[314514803,1708391444871,-500.0,0.00021966,2]
[314514804,1708391444880,-500.0,0.00021966,2]
[314514805,1708391444889,-701.27,0.00021966,2]
[314514806,1708391444898,-701.27,0.00021966,2]
[314514807,1708391444907,-701.27,0.00021966,2]
[314514808,1708391444916,-701.27,0.00021966,2]
[314514809,1708391444925,-701.27,0.00021966,2]
[314514810,1708391444933,-701.27,0.00021966,2]
[314514811,1708391444943,-701.27,0.00021966,2]
[314514812,1708391444951,-3575.96,0.00021966,2]
[314514813,1708391444960,-3575.96,0.00021966,2]
[314514814,1708391444970,-3575.96,0.00021966,2]
[314514815,1708391444978,-3575.96,0.00021966,2]
[314514816,1708391444988,-3575.96,0.00021966,2]
[314514817,1708391444997,-3575.97427655,0.00021966,2]
[314514818,1708391445005,-500.0,0.00021967,2]
[314514819,1708391445015,-427.92197084,0.00022,2]
[314514820,1708391445025,-2005.67375,0.00022,2]
[314514821,1708391445034,-500.0,0.00022044,2]
[314514822,1708391445043,-500.0,0.00022044,2]
[314514823,1708391445052,-500.0,0.00022044,2]
[314514824,1708391445062,-500.0,0.00022044,2]
[314514825,1708391445071,-252.20884706,0.00022044,2]
[314514826,1708391445080,-701.27,0.00022044,2]
[314514827,1708391445089,-701.27,0.00022044,2]
[314514828,1708391445098,-701.27,0.00022044,2]
[314514829,1708391445107,-701.27,0.00022044,2]
[314514830,1708391445116,-701.43372589,0.00022044,2]
[314514831,1708391445126,-980.2542557,0.00022077,2]
[314514832,1708391445136,-300.0,0.00022105,2]
[314514833,1708391445145,-236.21279067,0.0002212,2]
[314514834,1708391445154,-362.32845513,0.00022128,2]
[314514835,1708391445164,-1388.6147849,0.00022129,2]
[314514836,1708391445173,-31846.69393896,0.00022129,2]
[314514837,1708391445182,-542.96539922,0.00022129,2]
[314514838,1708391445192,-500.0,0.00022129,2]
[314514839,1708391445201,-500.0,0.00022129,2]
[314514840,1708391445210,-500.0,0.00022129,2]
[314514841,1708391445219,-500.0,0.00022129,2]
[314514842,1708391445228,-500.0,0.00022129,2]
[314514843,1708391445237,-500.0,0.00022129,2]
[314514844,1708391445246,-500.0,0.00022129,2]
[314514845,1708391445255,-500.0,0.00022129,2]
[314514846,1708391445264,-500.0,0.00022129,2]
[314514847,1708391445273,-500.0,0.00022129,2]
[314514848,1708391445283,-500.0,0.00022129,2]
[314514849,1708391445292,-500.0,0.00022129,2]
[314514850,1708391445301,-500.0,0.00022129,2]
[314514851,1708391445310,-500.0,0.00022129,2]
[314514852,1708391445318,-500.0,0.00022129,2]
[314514853,1708391445327,-500.0,0.00022129,2]
[314514854,1708391445337,-309.94021854,0.00022129,2]
[314514855,1708391445346,-500.0,0.00022129,2]
[314514856,1708391445355,-500.0,0.00022129,2]
[314514857,1708391445364,-500.0,0.00022129,2]
[314514858,1708391445372,-500.0,0.00022129,2]
[314514859,1708391445381,-500.0,0.00022129,2]
[314514860,1708391445390,-500.0,0.00022129,2]
[314514861,1708391445400,-280.01792774,0.00022129,2]
[314514862,1708391445409,-600.55105287,0.00022129,2]
[314514863,1708391445417,-500.0,0.00022129,2]
[314514864,1708391445426,-500.0,0.00022129,2]
[314514865,1708391445434,-500.0,0.00022129,2]
[314514866,1708391445443,-500.0,0.00022129,2]
[314514867,1708391445452,-500.0,0.00022129,2]
[314514868,1708391445460,-500.0,0.00022129,2]
[314514869,1708391445469,-500.0,0.00022129,2]
[314514870,1708391445479,-187.39200155,0.00022129,2]
[314514871,1708391445487,-530.50206387,0.00022129,2]
[314514872,1708391445496,-500.0,0.00022129,2]
[314514873,1708391445505,-500.0,0.00022129,2]
[314514874,1708391445513,-500.0,0.00022129,2]
[314514875,1708391445522,-500.0,0.00022129,2]
[314514876,1708391445534,-164.64861598,0.00022129,2]
[314514877,1708391445543,-345.0,0.00022129,2]
[314514878,1708391445553,-186.0,0.00022129,2]
[314514879,1708391445561,-194.10646344,0.00022129,2]
[314514880,1708391445571,-253.84699116,0.00022129,2]
[314514882,1708391445580,-500.0,0.00022129,2]
[314514883,1708391445588,-650.0,0.00022129,2]
[314514884,1708391445597,-500.0,0.00022129,2]
[314514885,1708391445607,-548.19687859,0.00022129,2]
[314514886,1708391445616,-500.0,0.00022129,2]
[314514887,1708391445629,-500.0,0.00022129,2]
[314514888,1708391445638,-327.09940244,0.00022129,2]
[314514889,1708391445647,-500.0,0.00022129,2]
[314514890,1708391445657,-764030.70716852,0.0002213,2]
[314514891,1708391445666,-577.4120973,0.00022191,2]
[314514892,1708391445674,-500.0,0.00022191,2]
[314514893,1708391445684,-500.0,0.00022191,2]
[314514894,1708391445693,-500.0,0.00022191,2]
[314514895,1708391445702,-500.0,0.00022191,2]
[314514896,1708391445714,-500.0,0.00022191,2]
[314514897,1708391445723,-366.2805284,0.00022191,2]
[314514898,1708391445732,-500.0,0.00022191,2]
[314514900,1708391445741,-500.0,0.00022191,2]
[314514902,1708391445750,-500.0,0.00022191,2]
[314514905,1708391445759,-500.0,0.00022191,2]
[314514908,1708391445769,-500.0,0.00022191,2]
[314514910,1708391445778,-500.0,0.00022191,2]
[314514912,1708391445787,-500.0,0.00022191,2]
[314514914,1708391445796,-500.0,0.00022191,2]
[314514915,1708391445806,-500.0,0.00022191,2]
[314514917,1708391445815,-500.0,0.00022191,2]
[314514920,1708391445825,-1000.0,0.00022191,2]
[314514922,1708391445834,-500.0,0.00022191,2]
[314514925,1708391445843,-523.04915757,0.00022191,2]
[314514927,1708391445853,-150.58577434,0.00022191,2]
[314514934,1708391445991,-500.0,0.00022191,2]
[314514935,1708391446002,-500.0,0.00022191,2]
[314514936,1708391446012,-520.37924643,0.00022191,2]
[314514938,1708391446021,-605.05,0.00022191,2]
[314514940,1708391446031,-500.0,0.00022191,2]
[314514942,1708391446040,-500.0,0.00022191,2]
[314514943,1708391446049,-500.0,0.00022191,2]
[314514945,1708391446058,-606.24,0.00022191,2]
[314514947,1708391446067,-500.0,0.00022191,2]
[314514948,1708391446076,-500.0,0.00022191,2]
[314514949,1708391446085,-608.89,0.00022191,2]
[314514950,1708391446094,-500.0,0.00022191,2]
[314514951,1708391446103,-500.0,0.00022191,2]
[314514952,1708391446113,-500.0,0.00022191,2]
[314514953,1708391446122,-500.0,0.00022191,2]
[314514954,1708391446131,-500.0,0.00022191,2]
[314514955,1708391446141,-501.59150273,0.00022191,2]
[314514956,1708391446150,-500.0,0.00022191,2]
[314514957,1708391446159,-500.0,0.00022191,2]
[314514958,1708391446169,-500.0,0.00022191,2]
[314514959,1708391446178,-500.0,0.00022191,2]
[314514960,1708391446188,-500.0,0.00022191,2]
[314514961,1708391446197,-501.28919033,0.00022191,2]
[314514962,1708391446206,-500.0,0.00022191,2]
[314514963,1708391446215,-500.0,0.00022191,2]
[314514964,1708391446225,-617.37875577,0.00022191,2]
[314514965,1708391446234,-500.0,0.00022191,2]
[314514966,1708391446243,-500.0,0.00022191,2]
[314514967,1708391446253,-500.0,0.00022191,2]
[314514968,1708391446262,-500.0,0.00022191,2]
[314514969,1708391446271,-500.0,0.00022191,2]
[314514970,1708391446281,-507.41020099,0.00022191,2]
[314514971,1708391446291,-1393.27,0.00022191,2]
[314514972,1708391446300,-500.0,0.00022191,2]
[314514973,1708391446309,-500.0,0.00022191,2]
[314514974,1708391446318,-500.0,0.00022191,2]
[314514975,1708391446327,-500.0,0.00022191,2]
[314514976,1708391446337,-500.0,0.00022191,2]
[314514977,1708391446345,-500.0,0.00022191,2]
[314514978,1708391446354,-500.0,0.00022191,2]
[314514979,1708391446363,-500.0,0.00022191,2]
[314514980,1708391446372,-1642.96,0.00022191,2]
[314514981,1708391446381,-500.0,0.00022191,2]
[314514982,1708391446390,-500.0,0.00022191,2]
[314514983,1708391446399,-565.07740366,0.00022191,2]
[314514984,1708391446408,-684.61,0.00022191,2]
[314514985,1708391446417,-500.0,0.00022191,2]
[314514986,1708391446426,-500.0,0.00022191,2]
[314514987,1708391446436,-500.0,0.00022191,2]
[314514988,1708391446445,-511.33426391,0.00022191,2]
[314514989,1708391446455,-524.45,0.00022191,2]
[314514990,1708391446463,-500.0,0.00022191,2]
[314514991,1708391446473,-331.30906795,0.00022191,2]
[314514992,1708391446482,-500.0,0.00022191,2]
[314514993,1708391446492,-478.55074506,0.00022191,2]
[314514994,1708391446501,-500.0,0.00022191,2]
[314514995,1708391446510,-500.0,0.00022191,2]
[314514996,1708391446519,-500.0,0.00022191,2]
[314514997,1708391446529,-500.0,0.00022191,2]
[314514998,1708391446538,-504.73000631,0.00022191,2]
[314514999,1708391446550,-500.0,0.00022191,2]
[314515000,1708391446559,-500.0,0.00022191,2]
[314515001,1708391446568,-500.0,0.00022191,2]
[314515002,1708391446578,-500.0,0.00022191,2]
[314515003,1708391446587,-232.71219261,0.00022191,2]
[314515004,1708391446596,-500.0,0.00022191,2]
[314515005,1708391446605,-500.0,0.00022191,2]
[314515006,1708391446616,-500.0,0.00022191,2]
[314515007,1708391446625,-500.0,0.00022191,2]
[314515008,1708391446634,-617.74,0.00022191,2]
[314515009,1708391446643,-500.0,0.00022191,2]
[314515010,1708391446652,-500.0,0.00022191,2]
[314515011,1708391446662,-500.0,0.00022191,2]
[314515012,1708391446671,-500.0,0.00022191,2]
[314515013,1708391446680,-500.0,0.00022191,2]
[314515014,1708391446689,-500.0,0.00022191,2]
[314515015,1708391446698,-500.0,0.00022191,2]
[314515016,1708391446707,-500.0,0.00022191,2]
[314515017,1708391446717,-500.0,0.00022191,2]
[314515018,1708391446726,-688.41,0.00022191,2]
[314515019,1708391446736,-500.0,0.00022191,2]
[314515020,1708391446745,-511.57844843,0.00022191,2]
[314515021,1708391446754,-500.0,0.00022191,2]
[314515022,1708391446764,-500.0,0.00022191,2]
[314515023,1708391446773,-500.0,0.00022191,2]
[314515024,1708391446783,-605.2,0.00022191,2]
[314515025,1708391446792,-500.0,0.00022191,2]
[314515027,1708391446801,-500.0,0.00022191,2]
[314515028,1708391446810,-500.0,0.00022191,2]
[314515030,1708391446820,-3215.25,0.00022191,2]
[314515032,1708391446829,-1291.68,0.00022191,2]
[314515034,1708391446838,-500.0,0.00022191,2]
[314515036,1708391446847,-500.0,0.00022191,2]
[314515038,1708391446856,-500.0,0.00022191,2]
[314515039,1708391446865,-500.0,0.00022191,2]
[314515040,1708391446874,-318.18279472,0.00022191,2]
[314515041,1708391446883,-6346.3,0.00022191,2]
[314515043,1708391446893,-500.0,0.00022191,2]
[314515044,1708391446902,-500.0,0.00022191,2]
[314515045,1708391446912,-500.0,0.00022191,2]
[314515046,1708391446921,-582.51749829,0.00022191,2]
[314515047,1708391446930,-500.0,0.00022191,2]
[314515048,1708391446939,-500.0,0.00022191,2]
[314515049,1708391446948,-723.92,0.00022191,2]
[314515050,1708391446957,-500.0,0.00022191,2]
[314515051,1708391446966,-500.0,0.00022191,2]
[314515052,1708391446975,-500.0,0.00022191,2]
[314515053,1708391446984,-527.55,0.00022191,2]
[314515054,1708391446995,-500.0,0.00022191,2]
[314515055,1708391447004,-500.0,0.00022191,2]
[314515056,1708391447014,-500.0,0.00022191,2]
[314515057,1708391447023,-500.0,0.00022191,2]
[314515058,1708391447033,-2449.57,0.00022191,2]
[314515059,1708391447043,-500.0,0.00022191,2]
[314515060,1708391447052,-500.0,0.00022191,2]
[314515061,1708391447061,-500.0,0.00022191,2]
[314515062,1708391447070,-500.0,0.00022191,2]
[314515063,1708391447079,-500.0,0.00022191,2]
[314515064,1708391447089,-1594.4,0.00022191,2]
[314515065,1708391447098,-807.3,0.00022191,2]
[314515066,1708391447107,-500.0,0.00022191,2]
[314515067,1708391447116,-500.0,0.00022191,2]
[314515068,1708391447126,-593.25,0.00022191,2]
[314515069,1708391447135,-212.94438551,0.00022191,2]
[314515070,1708391447144,-2776.48,0.00022191,2]
[314515071,1708391447153,-500.0,0.00022191,2]
[314515072,1708391447163,-500.0,0.00022191,2]
[314515073,1708391447172,-500.0,0.00022191,2]
[314515074,1708391447182,-500.0,0.00022191,2]
[314515075,1708391447191,-500.0,0.00022191,2]
[314515076,1708391447201,-500.0,0.00022191,2]
[314515077,1708391447210,-500.0,0.00022191,2]
[314515078,1708391447219,-500.0,0.00022191,2]
[314515079,1708391447228,-500.0,0.00022191,2]
[314515080,1708391447237,-500.0,0.00022191,2]
[314515081,1708391447246,-718.43,0.00022191,2]
[314515082,1708391447255,-242.06207545,0.00022191,2]
[314515083,1708391447265,-579.12900507,0.00022191,2]
[314515084,1708391447274,-697.96,0.00022191,2]
[314515085,1708391447285,-624.15,0.00022191,2]
[314515086,1708391447294,-500.0,0.00022191,2]
[314515087,1708391447303,-500.0,0.00022191,2]
[314515088,1708391447311,-500.0,0.00022191,2]
[314515089,1708391447320,-500.0,0.00022191,2]
[314515090,1708391447329,-500.0,0.00022191,2]
[314515091,1708391447338,-500.0,0.00022191,2]
[314515092,1708391447348,-500.0,0.00022191,2]
[314515093,1708391447356,-500.0,0.00022191,2]
[314515094,1708391447366,-500.0,0.00022191,2]
[314515095,1708391447374,-246.68524259,0.00022191,2]
[314515096,1708391447383,-500.0,0.00022191,2]
[314515097,1708391447392,-500.0,0.00022191,2]
[314515098,1708391447402,-500.0,0.00022191,2]
[314515099,1708391447410,-500.0,0.00022191,2]
[314515100,1708391447420,-500.0,0.00022191,2]
[314515101,1708391447428,-500.0,0.00022191,2]
[314515102,1708391447438,-820.31,0.00022191,2]
[314515103,1708391447446,-543.46777548,0.00022191,2]
[314515104,1708391447456,-500.0,0.00022191,2]
[314515105,1708391447465,-500.0,0.00022191,2]
[314515106,1708391447474,-815.47,0.00022191,2]
[314515107,1708391447483,-500.0,0.00022191,2]
[314515108,1708391447492,-500.0,0.00022191,2]
[314515109,1708391447501,-500.0,0.00022191,2]
[314515110,1708391447510,-1162.36,0.00022191,2]
[314515111,1708391447519,-576.23,0.00022191,2]
[314515112,1708391447531,-500.0,0.00022191,2]
[314515113,1708391447542,-500.0,0.00022191,2]
[314515114,1708391447551,-634.07,0.00022191,2]
[314515115,1708391447561,-500.0,0.00022191,2]
[314515116,1708391447570,-500.0,0.00022191,2]
[314515117,1708391447582,-500.0,0.00022191,2]
[314515118,1708391447591,-500.0,0.00022191,2]
[314515119,1708391447600,-1569.42,0.00022191,2]
[314515120,1708391447609,-500.0,0.00022191,2]
[314515121,1708391447618,-500.0,0.00022191,2]
[314515122,1708391447628,-881.83,0.00022191,2]
[314515123,1708391447637,-500.0,0.00022191,2]
[314515124,1708391447647,-500.0,0.00022191,2]
[314515125,1708391447656,-513.8,0.00022191,2]
[314515126,1708391447665,-500.0,0.00022191,2]
[314515127,1708391447673,-500.0,0.00022191,2]
[314515128,1708391447683,-1384.3,0.00022191,2]
[314515129,1708391447692,-500.0,0.00022191,2]
[314515130,1708391447701,-579.62,0.00022191,2]
[314515131,1708391447711,-500.0,0.00022191,2]
[314515132,1708391447721,-500.0,0.00022191,2]
[314515133,1708391447730,-590.99759878,0.00022191,2]
[314515134,1708391447739,-500.0,0.00022191,2]
[314515135,1708391447748,-500.0,0.00022191,2]
[314515136,1708391447758,-500.0,0.00022191,2]
[314515137,1708391447767,-511.13206468,0.00022191,2]
[314515138,1708391447776,-500.0,0.00022191,2]
[314515139,1708391447787,-500.0,0.00022191,2]
[314515140,1708391447796,-500.0,0.00022191,2]
[314515141,1708391447806,-500.0,0.00022191,2]
[314515142,1708391447815,-500.0,0.00022191,2]
[314515143,1708391447824,-500.0,0.00022191,2]
[314515144,1708391447833,-500.0,0.00022191,2]
[314515145,1708391447843,-500.0,0.00022191,2]
[314515146,1708391447852,-500.0,0.00022191,2]
[314515147,1708391447862,-500.0,0.00022191,2]
[314515148,1708391447870,-500.0,0.00022191,2]
[314515149,1708391447879,-500.0,0.00022191,2]
[314515150,1708391447889,-500.0,0.00022191,2]
[314515151,1708391447898,-544.69,0.00022191,2]
[314515152,1708391447907,-500.0,0.00022191,2]
[314515153,1708391447917,-500.0,0.00022191,2]
[314515154,1708391447926,-500.0,0.00022191,2]
[314515155,1708391447935,-500.0,0.00022191,2]
[314515156,1708391447944,-500.0,0.00022191,2]
[314515157,1708391447954,-500.0,0.00022191,2]
[314515158,1708391447963,-500.0,0.00022191,2]
[314515159,1708391447972,-500.0,0.00022191,2]
[314515160,1708391447981,-506.63364781,0.00022191,2]
[314515161,1708391447991,-500.0,0.00022191,2]
[314515162,1708391448001,-500.0,0.00022191,2]
[314515163,1708391448010,-2393.06,0.00022191,2]
[314515164,1708391448019,-500.0,0.00022191,2]
[314515165,1708391448029,-500.0,0.00022191,2]
[314515166,1708391448039,-500.0,0.00022191,2]
[314515167,1708391448048,-500.0,0.00022191,2]
[314515168,1708391448057,-398.71561007,0.00022191,2]
[314515169,1708391448067,-500.0,0.00022191,2]
[314515170,1708391448076,-500.0,0.00022191,2]
[314515171,1708391448085,-500.0,0.00022191,2]
[314515172,1708391448094,-500.0,0.00022191,2]
[314515173,1708391448103,-500.0,0.00022191,2]
[314515174,1708391448113,-200.0,0.00022191,2]
[314515175,1708391448122,-500.0,0.00022191,2]
[314515176,1708391448131,-500.0,0.00022191,2]
[314515177,1708391448141,-5301.4,0.00022191,2]
[314515178,1708391448150,-999.99,0.00022191,2]
[314515179,1708391448159,-500.0,0.00022191,2]
[314515180,1708391448169,-500.0,0.00022191,2]
[314515181,1708391448178,-500.0,0.00022191,2]
[314515182,1708391448187,-771.6,0.00022191,2]
[314515183,1708391448196,-701.47,0.00022191,2]
[314515184,1708391448205,-500.0,0.00022191,2]
[314515185,1708391448215,-500.0,0.00022191,2]
[314515186,1708391448224,-500.0,0.00022191,2]
[314515187,1708391448233,-500.0,0.00022191,2]
[314515188,1708391448242,-500.0,0.00022191,2]
[314515189,1708391448252,-544.29,0.00022191,2]
[314515190,1708391448260,-500.0,0.00022191,2]
[314515191,1708391448270,-500.0,0.00022191,2]
[314515192,1708391448279,-500.0,0.00022191,2]
[314515193,1708391448288,-500.0,0.00022191,2]
[314515194,1708391448298,-1000.0,0.00022191,2]
[314515195,1708391448306,-500.0,0.00022191,2]
[314515196,1708391448315,-631.02,0.00022191,2]
[314515197,1708391448324,-846.5,0.00022191,2]
[314515198,1708391448333,-648.6667239,0.00022191,2]
[314515199,1708391448342,-500.0,0.00022191,2]
[314515200,1708391448352,-500.0,0.00022191,2]
[314515201,1708391448360,-500.0,0.00022191,2]
[314515202,1708391448369,-500.0,0.00022191,2]
[314515203,1708391448378,-500.0,0.00022191,2]
[314515204,1708391448387,-571.97613183,0.00022191,2]
[314515205,1708391448396,-1535.69,0.00022191,2]
[314515206,1708391448404,-500.0,0.00022191,2]
[314515207,1708391448414,-500.0,0.00022191,2]
[314515208,1708391448422,-500.0,0.00022191,2]
[314515209,1708391448431,-481.86329541,0.00022191,2]
[314515210,1708391448440,-1143.76,0.00022191,2]
[314515211,1708391448449,-514.75248085,0.00022191,2]
[314515212,1708391448458,-500.0,0.00022191,2]
[314515213,1708391448467,-500.0,0.00022191,2]
[314515214,1708391448476,-500.0,0.00022191,2]
[314515215,1708391448486,-594.9404503,0.00022191,2]
[314515216,1708391448495,-500.0,0.00022191,2]
[314515217,1708391448503,-500.0,0.00022191,2]
[314515218,1708391448512,-511.25198583,0.00022191,2]
[314515219,1708391448522,-151.0,0.00022191,2]
[314515220,1708391448532,-302.2827155,0.00022191,2]
[314515221,1708391448542,-427.51650581,0.00022191,2]
[314515222,1708391449152,-267.36304732,0.00021807,3]
[314515223,1708391449163,-9439.85695268,0.00021807,3]
[314515224,1708391449173,-72.48349419,0.00022191,2]
[314515225,1708391449182,-500.0,0.00022191,2]
[314515226,1708391449192,-500.0,0.00022191,2]
[314515227,1708391449201,-500.0,0.00022191,2]
[314515228,1708391449210,-500.0,0.00022191,2]
[314515229,1708391449219,-500.0,0.00022191,2]
[314515230,1708391449228,-500.0,0.00022191,2]
[314515231,1708391449237,-500.0,0.00022191,2]
[314515232,1708391449246,-635.96,0.00022191,2]
[314515233,1708391449256,-500.0,0.00022191,2]
[314515234,1708391449265,-500.0,0.00022191,2]
[314515235,1708391449274,-500.0,0.00022191,2]
[314515236,1708391449284,-500.0,0.00022191,2]
[314515237,1708391449293,-500.0,0.00022191,2]